[Event "*** MasterClass Titled Tuesday Blitz"]
[Site "Chess.com"]
[Date "2017.08.01"]
[Round "7"]
[White "hassler2"]
[Black "kleinebeer98"]
[Result "1-0"]
[WhiteElo "2334"]
[BlackElo "2434"]
[TimeControl "180+2"]
[EndTime "14:34:44 PDT"]
[Termination "hassler2 won by resignation"]

1. b3 {[%clk 0:00:55.2]} 1... Nc6 {[%clk 0:03:00.2]} 2. Bb2 {[%clk 0:00:57.1]}
2... e5 {[%clk 0:03:02.1]} 3. e3 {[%clk 0:00:58.5]} 3... Nf6 {[%clk 0:03:03.7]}
4. Nf3 {[%clk 0:00:58.6]} 4... e4 {[%clk 0:03:00.6]} 5. Nd4 {[%clk 0:00:59.4]}
5... Nxd4 {[%clk 0:02:57.8]} 6. Bxd4 {[%clk 0:01:00.1]} 6... d5 {[%clk
0:02:56.3]} 7. c4 {[%clk 0:01:01.3]} 7... c5 {[%clk 0:02:56.8]} 8. Bb2 {[%clk
0:01:00.6]} 8... d4 {[%clk 0:02:56.2]} 9. Be2 {[%clk 0:00:59.3]} 9... d3 {[%clk
0:02:56.7]} 10. Bf1 {[%clk 0:01:00.5]} 10... Bg4 {[%clk 0:02:52.4]} 11. Qc1
{[%clk 0:00:59.7]} 11... Bd6 {[%clk 0:02:41.5]} 12. Nc3 {[%clk 0:00:56.9]} 12...
Qe7 {[%clk 0:02:39.2]} 13. h3 {[%clk 0:00:55]} 13... Bd7 {[%clk 0:02:30.9]} 14.
g3 {[%clk 0:00:47.5]} 14... Bc6 {[%clk 0:02:27.5]} 15. Bg2 {[%clk 0:00:47.4]}
15... a6 {[%clk 0:02:25.3]} 16. a4 {[%clk 0:00:43.5]} 16... h5 {[%clk
0:02:24.8]} 17. Qd1 {[%clk 0:00:41.6]} 17... Qc7 {[%clk 0:02:15.7]} 18. O-O
{[%clk 0:00:35.6]} 18... h4 {[%clk 0:02:14.9]} 19. g4 {[%clk 0:00:36.3]} 19...
O-O-O {[%clk 0:02:12]} 20. g5 {[%clk 0:00:34.4]} 20... Nh7 {[%clk 0:01:57.7]}
21. Qg4+ {[%clk 0:00:33.9]} 21... Kb8 {[%clk 0:01:57.5]} 22. Nxe4 {[%clk
0:00:34.6]} 22... Nf8 {[%clk 0:01:39.6]} 23. Nxd6 {[%clk 0:00:32.3]} 23... Bxg2
{[%clk 0:01:37.5]} 24. Qxg2 {[%clk 0:00:30.9]} 24... Qxd6 {[%clk 0:01:36.6]} 25.
f4 {[%clk 0:00:32.1]} 25... f6 {[%clk 0:01:34.8]} 26. Qg4 {[%clk 0:00:29.6]}
26... Ne6 {[%clk 0:01:33.2]} 27. Rf2 {[%clk 0:00:26.7]} 27... Rhf8 {[%clk
0:01:31.5]} 28. g6 {[%clk 0:00:26.7]} 28... Ka8 {[%clk 0:01:26.5]} 29. Qf5
{[%clk 0:00:27.6]} 29... Qc6 {[%clk 0:01:24.1]} 30. Raf1 {[%clk 0:00:27.1]}
30... Qb6 {[%clk 0:01:19.6]} 31. Bc3 {[%clk 0:00:25.7]} 31... Rfe8 {[%clk
0:01:18.6]} 32. Rb1 {[%clk 0:00:24.1]} 32... Qc6 {[%clk 0:01:17]} 33. Rg2 {[%clk
0:00:24.9]} 33... Rd7 {[%clk 0:01:14.6]} 34. Qg4 {[%clk 0:00:23.4]} 34... Rh8
{[%clk 0:01:08.8]} 35. Qf5 {[%clk 0:00:24.3]} 35... Re7 {[%clk 0:01:08.1]} 36.
a5 {[%clk 0:00:24.7]} 36... Rhe8 {[%clk 0:01:08.4]} 37. Rf1 {[%clk 0:00:24.9]}
37... Qd7 {[%clk 0:01:02]} 38. Rg4 {[%clk 0:00:24.6]} 38... Rh8 {[%clk 0:00:40]}
39. Rg2 {[%clk 0:00:17.1]} 39... Qc6 {[%clk 0:00:39.4]} 40. Rff2 {[%clk
0:00:17.9]} 40... Ka7 {[%clk 0:00:35.4]} 41. Rg4 {[%clk 0:00:19.4]} 41... Nd4
{[%clk 0:00:32.9]} 42. Qd5 {[%clk 0:00:15.2]} 42... Qxd5 {[%clk 0:00:31.3]} 43.
cxd5 {[%clk 0:00:16.4]} 43... Ne2+ {[%clk 0:00:33.2]} 44. Rxe2 {[%clk
0:00:16.5]} 44... dxe2 {[%clk 0:00:34.2]} 45. Kf2 {[%clk 0:00:18.2]} 45... Rd8
{[%clk 0:00:33.9]} 46. Kxe2 {[%clk 0:00:18.7]} 46... Rxd5 {[%clk 0:00:35]} 47.
Rxh4 {[%clk 0:00:20.4]} 47... Rd8 {[%clk 0:00:28.1]} 48. Rh7 {[%clk 0:00:21.1]}
48... Red7 {[%clk 0:00:24.7]} 49. Kf3 {[%clk 0:00:21.7]} 49... b6 {[%clk
0:00:24.8]} 50. axb6+ {[%clk 0:00:22.4]} 50... Kxb6 {[%clk 0:00:26.7]} 51. h4
{[%clk 0:00:23.5]} 51... Kb5 {[%clk 0:00:27.7]} 52. h5 {[%clk 0:00:24.1]} 52...
c4 {[%clk 0:00:27.7]} 53. bxc4+ {[%clk 0:00:23.2]} 53... Kxc4 {[%clk 0:00:29.6]}
54. h6 {[%clk 0:00:24.4]} 54... gxh6 {[%clk 0:00:31.5]} 55. Rxh6 {[%clk
0:00:25.9]} 55... Rf8 {[%clk 0:00:24.5]} 56. Rh5 {[%clk 0:00:26.1]} 56... Rd5
{[%clk 0:00:24.2]} 57. Rh1 {[%clk 0:00:26.5]} 57... a5 {[%clk 0:00:24.8]} 58.
Ra1 {[%clk 0:00:27.3]} 58... Rg8 {[%clk 0:00:22]} 59. Rg1 {[%clk 0:00:26.4]}
59... a4 {[%clk 0:00:22.4]} 60. Ke4 {[%clk 0:00:27]} 60... f5+ {[%clk
0:00:22.8]} 61. Kf3 {[%clk 0:00:27.2]} 61... a3 {[%clk 0:00:24.3]} 62. Ra1
{[%clk 0:00:28.2]} 62... Kb3 {[%clk 0:00:21.8]} 63. g7 {[%clk 0:00:28.4]} 63...
a2 {[%clk 0:00:22.5]} 64. Kg3 {[%clk 0:00:28.4]} 64... Rxd2 {[%clk 0:00:21.4]}
65. Bxd2 {[%clk 0:00:29.2]} 65... Rxg7+ {[%clk 0:00:21.9]} 66. Kf3 {[%clk
0:00:30]} 66... Kb2 {[%clk 0:00:23.3]} 67. Bc3+ {[%clk 0:00:31.6]} 67... Kxc3
{[%clk 0:00:21.1]} 68. Rxa2 {[%clk 0:00:33]} 68... Kd3 {[%clk 0:00:19.2]} 69.
Ra5 {[%clk 0:00:33.7]} 69... Rf7 {[%clk 0:00:13.7]} 70. Rd5+ {[%clk 0:00:34.6]}
70... Kc4 {[%clk 0:00:13.9]} 71. Rd8 {[%clk 0:00:36.3]} 71... Re7 {[%clk
0:00:13.1]} 72. Rf8 {[%clk 0:00:36.4]} 72... Rf7 {[%clk 0:00:14.5]} 73. Rxf7
{[%clk 0:00:37.3]} 1-0

[Event "*** MasterClass Titled Tuesday Blitz"]
[Site "Chess.com"]
[Date "2017.08.01"]
[Round "7"]
[White "FMVolodymyrSakun"]
[Black "MITerryble"]
[Result "0-1"]
[WhiteElo "2539"]
[BlackElo "2695"]
[TimeControl "180+2"]
[EndTime "14:35:16 PDT"]
[Termination "MITerryble won on time"]

1. e4 {[%clk 0:03:01.9]} 1... e6 {[%clk 0:03:00.9]} 2. d4 {[%clk 0:03:01.8]}
2... d5 {[%clk 0:03:02.3]} 3. Nc3 {[%clk 0:02:57.1]} 3... Nf6 {[%clk 0:03:03]}
4. e5 {[%clk 0:02:55]} 4... Nfd7 {[%clk 0:03:03.7]} 5. f4 {[%clk 0:02:55.9]}
5... c5 {[%clk 0:03:05]} 6. Nf3 {[%clk 0:02:56.7]} 6... Nc6 {[%clk 0:03:06.5]}
7. Be3 {[%clk 0:02:57.8]} 7... Be7 {[%clk 0:03:07.7]} 8. Qd2 {[%clk 0:02:58.1]}
8... O-O {[%clk 0:03:08.6]} 9. O-O-O {[%clk 0:02:57.5]} 9... c4 {[%clk
0:03:08.9]} 10. f5 {[%clk 0:02:52.4]} 10... b5 {[%clk 0:03:09.8]} 11. fxe6
{[%clk 0:02:29.7]} 11... fxe6 {[%clk 0:03:09.7]} 12. Nxb5 {[%clk 0:02:30.9]}
12... Rb8 {[%clk 0:03:09.7]} 13. Nd6 {[%clk 0:02:32]} 13... Bxd6 {[%clk
0:03:10.1]} 14. exd6 {[%clk 0:02:33.3]} 14... Nb4 {[%clk 0:03:11.6]} 15. Kb1
{[%clk 0:02:29.3]} 15... Nf6 {[%clk 0:03:12.5]} 16. Qc3 {[%clk 0:02:04.7]} 16...
Qa5 {[%clk 0:01:56]} 17. Qa3 {[%clk 0:02:05.4]} 17... Qxa3 {[%clk 0:01:56.2]}
18. bxa3 {[%clk 0:02:06.8]} 18... Ng4 {[%clk 0:01:57.6]} 19. Bg5 {[%clk
0:01:52.3]} 19... Nc6+ {[%clk 0:01:51.5]} 20. Kc1 {[%clk 0:01:49.3]} 20... Nf2
{[%clk 0:01:52.4]} 21. Be2 {[%clk 0:01:49.1]} 21... Nxh1 {[%clk 0:01:49.7]} 22.
Rxh1 {[%clk 0:01:49.9]} 22... Bd7 {[%clk 0:01:35.9]} 23. Kd2 {[%clk 0:01:39.8]}
23... Rb2 {[%clk 0:01:35]} 24. Ra1 {[%clk 0:01:35.4]} 24... Rfb8 {[%clk
0:01:26.4]} 25. Kc3 {[%clk 0:01:36.5]} 25... Rb1 {[%clk 0:01:23.5]} 26. Rxb1
{[%clk 0:01:37.2]} 26... Rxb1 {[%clk 0:01:25.2]} 27. h4 {[%clk 0:01:28.8]} 27...
Rb6 {[%clk 0:01:17.5]} 28. Ne5 {[%clk 0:01:25.6]} 28... Nxe5 {[%clk 0:01:14.1]}
29. dxe5 {[%clk 0:01:26.1]} 29... Rb1 {[%clk 0:01:03.1]} 30. Be3 {[%clk
0:01:20.4]} 30... a6 {[%clk 0:01:02.7]} 31. Bf3 {[%clk 0:01:16]} 31... Kf8
{[%clk 0:00:56.9]} 32. h5 {[%clk 0:01:13.4]} 32... h6 {[%clk 0:00:56.6]} 33. Bc5
{[%clk 0:01:09.6]} 33... Ke8 {[%clk 0:00:55.8]} 34. Bd4 {[%clk 0:01:10.3]} 34...
Kd8 {[%clk 0:00:38.3]} 35. Bg4 {[%clk 0:01:06.1]} 35... Ke8 {[%clk 0:00:29.8]}
36. Bf3 {[%clk 0:01:05.4]} 36... Kf7 {[%clk 0:00:29]} 37. Kd2 {[%clk 0:00:54.2]}
37... Rb5 {[%clk 0:00:26.7]} 38. Kc3 {[%clk 0:00:54.9]} 38... Rb8 {[%clk
0:00:27.4]} 39. Bc5 {[%clk 0:00:55.3]} 39... Rb1 {[%clk 0:00:25.8]} 40. Bd4
{[%clk 0:00:55.9]} 40... g5 {[%clk 0:00:25]} 41. hxg6+ {[%clk 0:00:54.2]} 41...
Kxg6 {[%clk 0:00:26.9]} 42. Kd2 {[%clk 0:00:53.5]} 42... h5 {[%clk 0:00:24.1]}
43. Ke3 {[%clk 0:00:50.5]} 43... Kg5 {[%clk 0:00:23.2]} 44. g3 {[%clk
0:00:46.7]} 44... Rb5 {[%clk 0:00:22.2]} 45. Bc3 {[%clk 0:00:43.1]} 45... Rb1
{[%clk 0:00:17.7]} 46. Bd4 {[%clk 0:00:41.3]} 46... Kg6 {[%clk 0:00:17.9]} 47.
Bc3 {[%clk 0:00:41.7]} 47... Rc1 {[%clk 0:00:15.9]} 48. Kd2 {[%clk 0:00:40.4]}
48... Rg1 {[%clk 0:00:15.8]} 49. Ke3 {[%clk 0:00:36.5]} 49... Rxg3 {[%clk
0:00:16.4]} 50. Kf4 {[%clk 0:00:36.6]} 50... Rg1 {[%clk 0:00:16.3]} 51. Bd4
{[%clk 0:00:37.4]} 51... Rc1 {[%clk 0:00:15]} 52. c3 {[%clk 0:00:37.1]} 52...
Rc2 {[%clk 0:00:14.8]} 53. Bd1 {[%clk 0:00:33.8]} 53... Rxa2 {[%clk 0:00:15.2]}
54. Bc5 {[%clk 0:00:30.2]} 54... Rd2 {[%clk 0:00:15.4]} 55. Bf3 {[%clk
0:00:26.9]} 55... Rd3 {[%clk 0:00:14.6]} 56. Bd4 {[%clk 0:00:25.5]} 56... Rd2
{[%clk 0:00:12.7]} 57. Kg3 {[%clk 0:00:23.3]} 57... Rb2 {[%clk 0:00:13.7]} 58.
Kh4 {[%clk 0:00:21.6]} 58... Rb3 {[%clk 0:00:13.6]} 59. Bxh5+ {[%clk 0:00:21.6]}
59... Kg7 {[%clk 0:00:14.8]} 60. Bf3 {[%clk 0:00:19.4]} 60... Kf7 {[%clk
0:00:11]} 61. Kg5 {[%clk 0:00:18.9]} 61... Rxa3 {[%clk 0:00:11.2]} 62. Bh5+
{[%clk 0:00:17.9]} 62... Kg7 {[%clk 0:00:11.9]} 63. Bb6 {[%clk 0:00:18.5]} 63...
Rxc3 {[%clk 0:00:10.1]} 64. Bd8 {[%clk 0:00:18.7]} 64... Rg3+ {[%clk 0:00:11]}
65. Kf4 {[%clk 0:00:19.9]} 65... Rg1 {[%clk 0:00:11.6]} 66. Bf6+ {[%clk
0:00:20.7]} 66... Kg8 {[%clk 0:00:11.4]} 67. Be2 {[%clk 0:00:21.2]} 67... a5
{[%clk 0:00:11.3]} 68. Ke3 {[%clk 0:00:22.2]} 68... a4 {[%clk 0:00:12]} 0-1

[Event "*** MasterClass Titled Tuesday Blitz"]
[Site "Chess.com"]
[Date "2017.08.01"]
[Round "7"]
[White "SipkeErnst"]
[Black "popov_m"]
[Result "1/2-1/2"]
[WhiteElo "2528"]
[BlackElo "2422"]
[TimeControl "180+2"]
[EndTime "14:35:21 PDT"]
[Termination "Game drawn by repetition"]

1. d4 {[%clk 0:02:57.6]} 1... g6 {[%clk 0:03:00.8]} 2. e4 {[%clk 0:02:56.8]}
2... Bg7 {[%clk 0:03:02.3]} 3. c4 {[%clk 0:02:57.9]} 3... d6 {[%clk 0:03:03.2]}
4. Nf3 {[%clk 0:02:58.9]} 4... Nf6 {[%clk 0:03:03.8]} 5. Nc3 {[%clk 0:02:59.1]}
5... O-O {[%clk 0:03:03.9]} 6. Be2 {[%clk 0:03:00.6]} 6... Na6 {[%clk
0:03:01.6]} 7. Be3 {[%clk 0:02:59.5]} 7... c6 {[%clk 0:03:00.5]} 8. O-O {[%clk
0:03:00.1]} 8... e5 {[%clk 0:02:59.1]} 9. dxe5 {[%clk 0:02:55.5]} 9... dxe5
{[%clk 0:02:59]} 10. h3 {[%clk 0:02:55.1]} 10... Qe7 {[%clk 0:02:47.1]} 11. a3
{[%clk 0:02:48.4]} 11... Nc5 {[%clk 0:02:43.1]} 12. Qc2 {[%clk 0:02:44.7]} 12...
Nh5 {[%clk 0:02:20.5]} 13. Rfd1 {[%clk 0:02:45.7]} 13... Ne6 {[%clk 0:02:19.8]}
14. Rab1 {[%clk 0:02:13.6]} 14... Qf6 {[%clk 0:01:41.8]} 15. Bf1 {[%clk
0:01:59.8]} 15... Nhf4 {[%clk 0:01:35.2]} 16. Nh2 {[%clk 0:01:28.8]} 16... Nd4
{[%clk 0:01:28.5]} 17. Qd2 {[%clk 0:01:06.5]} 17... Be6 {[%clk 0:00:47.1]} 18.
Bxd4 {[%clk 0:00:54.3]} 18... exd4 {[%clk 0:00:46.2]} 19. Ne2 {[%clk 0:00:44.7]}
19... Nxe2+ {[%clk 0:00:40.8]} 20. Bxe2 {[%clk 0:00:42.7]} 20... Rad8 {[%clk
0:00:40.5]} 21. Bd3 {[%clk 0:00:42.5]} 21... h5 {[%clk 0:00:37.9]} 22. Qe2
{[%clk 0:00:34.5]} 22... Bh6 {[%clk 0:00:37.2]} 23. b4 {[%clk 0:00:31.8]} 23...
Bf4 {[%clk 0:00:37.6]} 24. Nf3 {[%clk 0:00:28.5]} 24... Bc7 {[%clk 0:00:36.5]}
25. c5 {[%clk 0:00:27.6]} 25... Rfe8 {[%clk 0:00:36.5]} 26. Re1 {[%clk
0:00:27.8]} 26... Qf4 {[%clk 0:00:31.5]} 27. Rbd1 {[%clk 0:00:20.4]} 27... Bb3
{[%clk 0:00:31.9]} 28. Bc2 {[%clk 0:00:20.4]} 28... Be6 {[%clk 0:00:31.9]} 29.
Qd3 {[%clk 0:00:21.2]} 29... Rd7 {[%clk 0:00:23.8]} 30. Bb3 {[%clk 0:00:22.5]}
30... Bxb3 {[%clk 0:00:22.4]} 31. Qxb3 {[%clk 0:00:24.4]} 31... Rxe4 {[%clk
0:00:20.7]} 32. Rxe4 {[%clk 0:00:25.5]} 32... Qxe4 {[%clk 0:00:22.2]} 33. Re1
{[%clk 0:00:26.8]} 33... Qf4 {[%clk 0:00:21.8]} 34. Qd3 {[%clk 0:00:27.4]} 34...
Kg7 {[%clk 0:00:21.4]} 35. Re4 {[%clk 0:00:27.3]} 35... Qc1+ {[%clk 0:00:19.5]}
36. Re1 {[%clk 0:00:28.8]} 36... Qf4 {[%clk 0:00:20.3]} 37. Re4 {[%clk
0:00:29.4]} 37... Qc1+ {[%clk 0:00:16.1]} 38. Re1 {[%clk 0:00:30.8]} 38... Qc3
{[%clk 0:00:16.4]} 39. Rd1 {[%clk 0:00:31.2]} 39... Re7 {[%clk 0:00:07.2]} 40.
Kf1 {[%clk 0:00:27.9]} 40... Qxd3+ {[%clk 0:00:04.4]} 41. Rxd3 {[%clk
0:00:28.5]} 41... a5 {[%clk 0:00:06]} 42. Rxd4 {[%clk 0:00:27.1]} 42... axb4
{[%clk 0:00:07.5]} 43. Rxb4 {[%clk 0:00:24.1]} 43... Bb8 {[%clk 0:00:06.4]} 44.
Nd2 {[%clk 0:00:24.4]} 44... Ba7 {[%clk 0:00:06.4]} 45. Ne4 {[%clk 0:00:24.8]}
45... Re5 {[%clk 0:00:06.8]} 46. Rxb7 {[%clk 0:00:20.7]} 46... Bxc5 {[%clk
0:00:07.5]} 47. Nxc5 {[%clk 0:00:20.2]} 47... Rxc5 {[%clk 0:00:09.4]} 48. Rb2
{[%clk 0:00:21.7]} 48... Ra5 {[%clk 0:00:06.7]} 49. Ra2 {[%clk 0:00:23]} 49...
Kf6 {[%clk 0:00:08.2]} 50. Ke2 {[%clk 0:00:23.1]} 50... Ke5 {[%clk 0:00:09.8]}
51. Kd3 {[%clk 0:00:24.7]} 51... Kd5 {[%clk 0:00:11.1]} 52. Kc3 {[%clk
0:00:25.4]} 52... Kc5 {[%clk 0:00:12.3]} 53. a4 {[%clk 0:00:26.5]} 53... Ra8
{[%clk 0:00:11.1]} 54. a5 {[%clk 0:00:21.3]} 54... Kb5 {[%clk 0:00:11.8]} 55.
Rb2+ {[%clk 0:00:22.8]} 55... Kc5 {[%clk 0:00:13.3]} 56. Ra2 {[%clk 0:00:24.1]}
56... Kb5 {[%clk 0:00:14.6]} 57. Kd4 {[%clk 0:00:24.2]} 57... c5+ {[%clk
0:00:13.7]} 58. Kd5 {[%clk 0:00:21.5]} 58... Rd8+ {[%clk 0:00:13]} 59. Ke5
{[%clk 0:00:21.8]} 59... c4 {[%clk 0:00:14.5]} 60. a6 {[%clk 0:00:23.2]} 60...
Ra8 {[%clk 0:00:02.8]} 61. a7 {[%clk 0:00:24.3]} 61... Kb4 {[%clk 0:00:04.2]}
62. Kf6 {[%clk 0:00:20.5]} 62... Kb3 {[%clk 0:00:05.4]} 63. Ra6 {[%clk
0:00:20.5]} 63... c3 {[%clk 0:00:06.6]} 64. Kxf7 {[%clk 0:00:20.4]} 64... c2
{[%clk 0:00:08.1]} 65. Rb6+ {[%clk 0:00:21.7]} 65... Ka2 {[%clk 0:00:08.4]} 66.
Rc6 {[%clk 0:00:23]} 66... Kb2 {[%clk 0:00:09.7]} 67. Rb6+ {[%clk 0:00:20.5]}
67... Ka2 {[%clk 0:00:09.9]} 68. Ra6+ {[%clk 0:00:20.4]} 68... Kb2 {[%clk
0:00:10.7]} 69. Rb6+ {[%clk 0:00:21.3]} 69... Ka2 {[%clk 0:00:12]} 1/2-1/2

[Event "*** MasterClass Titled Tuesday Blitz"]
[Site "Chess.com"]
[Date "2017.08.01"]
[Round "7"]
[White "AllStarShark"]
[Black "biostatistician"]
[Result "1-0"]
[WhiteElo "2317"]
[BlackElo "2446"]
[TimeControl "180+2"]
[EndTime "14:37:04 PDT"]
[Termination "AllStarShark won by checkmate"]

1. d4 {[%clk 0:03:01.9]} 1... Nf6 {[%clk 0:02:57.5]} 2. Bg5 {[%clk 0:03:01.6]}
2... Ne4 {[%clk 0:02:57.1]} 3. Bf4 {[%clk 0:03:02.4]} 3... d5 {[%clk 0:02:58.5]}
4. e3 {[%clk 0:03:03.7]} 4... Bf5 {[%clk 0:02:57.9]} 5. Bd3 {[%clk 0:03:04.5]}
5... e6 {[%clk 0:02:56.7]} 6. Nd2 {[%clk 0:03:01.2]} 6... Bd6 {[%clk 0:02:53.4]}
7. Bxe4 {[%clk 0:02:57.9]} 7... dxe4 {[%clk 0:02:43.9]} 8. Bxd6 {[%clk
0:02:53.2]} 8... cxd6 {[%clk 0:02:44]} 9. c3 {[%clk 0:02:49.1]} 9... Bg6 {[%clk
0:02:36.9]} 10. Ne2 {[%clk 0:02:48.6]} 10... Nc6 {[%clk 0:02:30.1]} 11. Qb3
{[%clk 0:02:42.6]} 11... Rb8 {[%clk 0:02:28.7]} 12. Nf4 {[%clk 0:02:38]} 12...
d5 {[%clk 0:02:25.8]} 13. c4 {[%clk 0:02:29.9]} 13... dxc4 {[%clk 0:02:16.2]}
14. Nxc4 {[%clk 0:02:25.1]} 14... O-O {[%clk 0:02:16.3]} 15. Nxg6 {[%clk
0:02:07.3]} 15... hxg6 {[%clk 0:02:18.2]} 16. Nd2 {[%clk 0:02:08.3]} 16... Qd5
{[%clk 0:02:16.7]} 17. Qxd5 {[%clk 0:01:17.5]} 17... exd5 {[%clk 0:02:18.6]} 18.
a3 {[%clk 0:01:18.8]} 18... Rfc8 {[%clk 0:02:12.5]} 19. Ke2 {[%clk 0:01:19.9]}
19... Na5 {[%clk 0:02:10.1]} 20. Rhc1 {[%clk 0:01:20.1]} 20... b5 {[%clk
0:02:08.9]} 21. Rc5 {[%clk 0:01:09.4]} 21... Rxc5 {[%clk 0:02:02.4]} 22. dxc5
{[%clk 0:01:11.3]} 22... f5 {[%clk 0:01:52.8]} 23. b4 {[%clk 0:01:11.3]} 23...
Nc6 {[%clk 0:01:38.6]} 24. Nb3 {[%clk 0:01:12.1]} 24... Kf7 {[%clk 0:01:38.5]}
25. Rd1 {[%clk 0:01:11.7]} 25... Ke6 {[%clk 0:01:38.9]} 26. Nd4+ {[%clk
0:01:09.2]} 26... Nxd4+ {[%clk 0:01:39.5]} 27. Rxd4 {[%clk 0:01:09]} 27... g5
{[%clk 0:01:40.4]} 28. h3 {[%clk 0:01:08.4]} 28... Ke5 {[%clk 0:01:38.2]} 29.
Rd1 {[%clk 0:01:07]} 29... f4 {[%clk 0:01:35.3]} 30. Ra1 {[%clk 0:01:00.7]}
30... a5 {[%clk 0:01:22.7]} 31. bxa5 {[%clk 0:00:34.6]} 31... Ra8 {[%clk
0:01:22.2]} 32. Rc1 {[%clk 0:00:26]} 32... Rxa5 {[%clk 0:01:18.4]} 33. c6 {[%clk
0:00:26.8]} 33... Ra8 {[%clk 0:01:18.2]} 34. c7 {[%clk 0:00:23.2]} 34... Rc8
{[%clk 0:01:18.7]} 35. Rc6 {[%clk 0:00:24.2]} 35... d4 {[%clk 0:01:07.8]} 36.
Rc5+ {[%clk 0:00:24.2]} 36... Kd6 {[%clk 0:01:08.9]} 37. exd4 {[%clk 0:00:25.2]}
37... Rxc7 {[%clk 0:01:10.4]} 38. Rxb5 {[%clk 0:00:18.8]} 38... Rc2+ {[%clk
0:01:09.7]} 39. Ke1 {[%clk 0:00:20.1]} 39... Rc1+ {[%clk 0:00:40.4]} 40. Kd2
{[%clk 0:00:20.6]} 40... Rc4 {[%clk 0:00:41.4]} 41. Rxg5 {[%clk 0:00:19.3]}
41... Rxd4+ {[%clk 0:00:42.6]} 42. Ke2 {[%clk 0:00:20.7]} 42... Ra4 {[%clk
0:00:40.5]} 43. Rxg7 {[%clk 0:00:18.1]} 43... Rxa3 {[%clk 0:00:41.7]} 44. Rg5
{[%clk 0:00:07.7]} 44... Ra2+ {[%clk 0:00:38.8]} 45. Ke1 {[%clk 0:00:08.7]}
45... Ke6 {[%clk 0:00:40.2]} 46. g3 {[%clk 0:00:09.4]} 46... f3 {[%clk
0:00:34.6]} 47. h4 {[%clk 0:00:09]} 47... Re2+ {[%clk 0:00:34.8]} 48. Kf1 {[%clk
0:00:09.4]} 48... Ra2 {[%clk 0:00:36.3]} 49. Ke1 {[%clk 0:00:10.9]} 49... Ra1+
{[%clk 0:00:35.3]} 50. Kd2 {[%clk 0:00:11.9]} 50... Rf1 {[%clk 0:00:36.9]} 51.
Ke3 {[%clk 0:00:12.7]} 51... Re1+ {[%clk 0:00:38.2]} 52. Kf4 {[%clk 0:00:14.1]}
52... Re2 {[%clk 0:00:39.9]} 53. Re5+ {[%clk 0:00:14.1]} 53... Kf6 {[%clk
0:00:39.4]} 54. Rxe4 {[%clk 0:00:15.5]} 54... Rxf2 {[%clk 0:00:41]} 55. Re3
{[%clk 0:00:17]} 55... Kg6 {[%clk 0:00:31.3]} 56. Rxf3 {[%clk 0:00:17.3]} 56...
Ra2 {[%clk 0:00:33]} 57. Kg4 {[%clk 0:00:18.6]} 57... Ra4+ {[%clk 0:00:32.6]}
58. Rf4 {[%clk 0:00:19.8]} 58... Ra6 {[%clk 0:00:34.5]} 59. Rb4 {[%clk
0:00:21.1]} 59... Rc6 {[%clk 0:00:35.3]} 60. Kh3 {[%clk 0:00:21.4]} 60... Rd6
{[%clk 0:00:36.8]} 61. Rb3 {[%clk 0:00:22.8]} 61... Rc6 {[%clk 0:00:38.3]} 62.
g4 {[%clk 0:00:24.2]} 62... Rd6 {[%clk 0:00:39.8]} 63. h5+ {[%clk 0:00:25.6]}
63... Kh6 {[%clk 0:00:37]} 64. Kh4 {[%clk 0:00:26.9]} 64... Rd5 {[%clk 0:00:38]}
65. Rb6+ {[%clk 0:00:27.3]} 65... Kg7 {[%clk 0:00:39.2]} 66. Rc6 {[%clk
0:00:26.9]} 66... Kh7 {[%clk 0:00:40.3]} 67. Rc7+ {[%clk 0:00:27.3]} 67... Kg8
{[%clk 0:00:33.9]} 68. h6 {[%clk 0:00:28.3]} 68... Kh8 {[%clk 0:00:34.5]} 69. g5
{[%clk 0:00:29.7]} 69... Rd6 {[%clk 0:00:34.2]} 70. Kh5 {[%clk 0:00:30.4]} 70...
Rd5 {[%clk 0:00:35.5]} 71. Rc8+ {[%clk 0:00:30.4]} 71... Kh7 {[%clk 0:00:36.3]}
72. Rc7+ {[%clk 0:00:32]} 72... Kh8 {[%clk 0:00:37.7]} 73. Ra7 {[%clk
0:00:31.5]} 73... Rb5 {[%clk 0:00:38.5]} 74. Ra6 {[%clk 0:00:32.3]} 74... Kh7
{[%clk 0:00:38]} 75. Rg6 {[%clk 0:00:26.8]} 75... Rb1 {[%clk 0:00:33.4]} 76.
Rg7+ {[%clk 0:00:27.9]} 76... Kh8 {[%clk 0:00:34.5]} 77. Rf7 {[%clk 0:00:29.1]}
77... Rb5 {[%clk 0:00:32.9]} 78. Kg6 {[%clk 0:00:29.1]} 78... Rb6+ {[%clk
0:00:33.9]} 79. Rf6 {[%clk 0:00:30.2]} 79... Rb8 {[%clk 0:00:34.4]} 80. Ra6
{[%clk 0:00:26.7]} 80... Rc8 {[%clk 0:00:29.9]} 81. Re6 {[%clk 0:00:26]} 81...
Rb8 {[%clk 0:00:30.7]} 82. Kf7 {[%clk 0:00:27.2]} 82... Kh7 {[%clk 0:00:29.8]}
83. Re7 {[%clk 0:00:20.4]} 83... Rb6 {[%clk 0:00:30.3]} 84. Kf8+ {[%clk
0:00:18.3]} 84... Kh8 {[%clk 0:00:28.3]} 85. Re5 {[%clk 0:00:11]} 85... Kh7
{[%clk 0:00:26.8]} 86. Kf7 {[%clk 0:00:11.3]} 86... Rb7+ {[%clk 0:00:26.4]} 87.
Kf6 {[%clk 0:00:12.7]} 87... Rb6+ {[%clk 0:00:27]} 88. Re6 {[%clk 0:00:14]}
88... Rb5 {[%clk 0:00:27.3]} 89. Re7+ {[%clk 0:00:14.7]} 89... Kh8 {[%clk
0:00:28.4]} 90. g6 {[%clk 0:00:15.3]} 90... Rb6+ {[%clk 0:00:27.9]} 91. Kf7
{[%clk 0:00:16.6]} 91... Re6 {[%clk 0:00:14]} 92. g7+ {[%clk 0:00:14.9]} 92...
Kh7 {[%clk 0:00:12.8]} 93. g8=Q+ {[%clk 0:00:16.3]} 93... Kxh6 {[%clk
0:00:13.1]} 94. Rxe6+ {[%clk 0:00:17.6]} 94... Kh5 {[%clk 0:00:13.2]} 95. Ke8
{[%clk 0:00:16.6]} 95... Kh4 {[%clk 0:00:12.3]} 96. Rh6# {[%clk 0:00:18.5]} 1-0